[Event "Vastgota Open 2022"]
[Site "Skara stadshotell, Jarnvagsgatan 5, Skara, Sweden"]
[Date "2022.10.30"]
[Round "6.6"]
[White "Johnson, Daniel"]
[Black "Bengtsson, Jessica"]
[Result "0-1"]
[TimeControl "30 minutes + 10 seconds per move from move one."]
[BlackTitle "WFM"]
[WhiteFideId "1721283"]
[BlackFideId "1711083"]
[WhiteElo "2155"]
[BlackElo "2003"]

1. d4 {[%clk 00:27:20]} {[%emt 00:02:52]} Nf6 {[%clk 00:30:09]} {[%emt
00:00:12]} 2. Nc3 {[%clk 00:27:00]} {[%emt 00:00:30]} d5 {[%clk 00:30:04]}
{[%emt 00:00:15]} 3. Bf4 {[%clk 00:27:07]} {[%emt 00:00:03]} Bf5 {[%clk
00:28:07]} {[%emt 00:02:07]} 4. e3 {[%clk 00:26:34]} {[%emt 00:00:43]} e6
{[%clk 00:27:29]} {[%emt 00:00:48]} 5. f3 {[%clk 00:26:30]} {[%emt 00:00:14]}
Bd6 {[%clk 00:25:17]} {[%emt 00:02:22]} 6. Bxd6 {[%clk 00:26:19]} {[%emt
00:00:22]} Qxd6 {[%clk 00:24:18]} {[%emt 00:01:09]} 7. g4 {[%clk 00:25:54]}
{[%emt 00:00:34]} Bg6 {[%clk 00:24:21]} {[%emt 00:00:07]} 8. Qd2 {[%clk
00:23:34]} {[%emt 00:02:30]} a6 {[%clk 00:22:22]} {[%emt 00:02:10]} 9. O-O-O
{[%clk 00:23:26]} {[%emt 00:00:18]} Nc6 {[%clk 00:20:49]} {[%emt 00:01:43]} 10.
h4 {[%clk 00:21:10]} {[%emt 00:02:25]} h6 {[%clk 00:20:26]} {[%emt 00:00:34]}
11. Nh3 {[%clk 00:16:07]} {[%emt 00:05:12]} Nb4 {[%clk 00:14:21]} {[%emt
00:06:15]} 12. a3 {[%clk 00:07:27]} {[%emt 00:08:51]} Nxc2 {[%clk 00:10:51]}
{[%emt 00:03:40]} 13. Bd3 {[%clk 00:03:56]} {[%emt 00:03:40]} Na1 {[%clk
00:10:48]} {[%emt 00:00:13]} 14. Kb1 {[%clk 00:03:54]} {[%emt 00:00:12]} Nb3
{[%clk 00:10:45]} {[%emt 00:00:13]} 15. Qc2 {[%clk 00:03:56]} {[%emt 00:00:08]}
Bxd3 {[%clk 00:10:37]} {[%emt 00:00:19]} 16. Qxd3 {[%clk 00:03:25]} {[%emt
00:00:41]} Na5 {[%clk 00:09:07]} {[%emt 00:01:39]} 17. g5 {[%clk 00:03:18]}
{[%emt 00:00:17]} Nd7 {[%clk 00:08:45]} {[%emt 00:00:32]} 18. g6 {[%clk
00:02:56]} {[%emt 00:00:33]} f6 {[%clk 00:08:09]} {[%emt 00:00:45]} 19. e4
{[%clk 00:01:44]} {[%emt 00:01:22]} O-O-O {[%clk 00:06:18]} {[%emt 00:02:01]}
20. exd5 {[%clk 00:01:52]} {[%emt 00:00:03]} exd5 {[%clk 00:06:25]} {[%emt
00:00:03]} 21. Qf5 {[%clk 00:02:00]} {[%emt 00:00:02]} c6 {[%clk 00:06:10]}
{[%emt 00:00:25]} 22. Rhe1 {[%clk 00:02:00]} {[%emt 00:00:10]} Rde8 {[%clk
00:04:23]} {[%emt 00:01:57]} 23. Nf4 {[%clk 00:01:44]} {[%emt 00:00:26]} Re7
{[%clk 00:03:41]} {[%emt 00:00:52]} 24. Nfxd5 {[%clk 00:00:24]} {[%emt
00:01:29]} cxd5 {[%clk 00:01:33]} {[%emt 00:02:18]} 25. Nxd5 {[%clk 00:00:32]}
{[%emt 00:00:02]} Rxe1 {[%clk 00:01:22]} {[%emt 00:00:22]} 26. Rxe1 {[%clk
00:00:41]} {[%emt 00:00:01]} Kb8 {[%clk 00:00:42]} {[%emt 00:00:50]} 27. Re6
{[%clk 00:00:24]} {[%emt 00:00:27]} Qg3 {[%clk 00:00:22]} {[%emt 00:00:29]} 28.
Re7 {[%clk 00:00:18]} {[%emt 00:00:17]} Rd8 {[%clk 00:00:13]} {[%emt 00:00:19]}
29. Rxd7 {[%clk 00:00:14]} {[%emt 00:00:13]} Rxd7 {[%clk 00:00:15]} {[%emt
00:00:09]} 30. Qxd7 {[%clk 00:00:22]} {[%emt 00:00:02]} Ka7 {[%clk 00:00:11]}
{[%emt 00:00:14]} 31. Qxg7 {[%clk 00:00:12]} {[%emt 00:00:19]} Qe1+ {[%clk
00:00:18]} {[%emt 00:00:04]} 32. Ka2 {[%clk 00:00:15]} {[%emt 00:00:07]} Qe6
{[%clk 00:00:23]} {[%emt 00:00:06]} 33. Qf7 {[%clk 00:00:18]} {[%emt 00:00:06]}
Qc6 {[%clk 00:00:28]} {[%emt 00:00:06]} 34. Nb4 {[%clk 00:00:13]} {[%emt
00:00:15]} Qc2 {[%clk 00:00:25]} {[%emt 00:00:13]} 35. g7 {[%clk 00:00:12]}
{[%emt 00:00:11]} Nc4 {[%clk 00:00:11]} {[%emt 00:00:24]} 36. Nd3 {[%clk
00:00:14]} {[%emt 00:00:08]} Nd2 {[%clk 00:00:11]} {[%emt 00:00:10]} 37. a4
{[%clk 00:00:11]} {[%emt 00:00:13]} Qxa4# {[%clk 00:30:10]} {[%emt 00:00:02]}
0-1

[Event "Vastgota Open 2022"]
[Site "Skara stadshotell, Jarnvagsgatan 5, Skara, Sweden"]
[Date "2022.10.30"]
[Round "6.7"]
[White "Aroven, Mikael"]
[Black "Lind, Jan-Olov"]
[Result "1/2-1/2"]
[TimeControl "30 minutes + 10 seconds per move from move one."]
[WhiteFideId "1709534"]
[BlackFideId "1701193"]
[WhiteElo "2089"]
[BlackElo "2123"]

1. c4 {[%clk 00:30:18]} Nf6 {[%clk 00:29:53]} {[%emt 00:00:18]} 2. g3 {[%clk
00:30:23]} {[%emt 00:00:05]} g6 {[%clk 00:30:01]} {[%emt 00:00:02]} 3. Bg2
{[%clk 00:30:32]} Bg7 {[%clk 00:30:10]} 4. Nc3 {[%clk 00:30:39]} {[%emt
00:00:04]} O-O {[%clk 00:30:18]} {[%emt 00:00:02]} 5. d3 {[%clk 00:30:27]}
{[%emt 00:00:22]} d6 {[%clk 00:30:14]} {[%emt 00:00:14]} 6. Nf3 {[%clk
00:30:30]} {[%emt 00:00:08]} Nc6 {[%clk 00:30:17]} {[%emt 00:00:07]} 7. O-O
{[%clk 00:30:31]} {[%emt 00:00:08]} e5 {[%clk 00:30:16]} {[%emt 00:00:11]} 8.
h3 {[%clk 00:30:19]} {[%emt 00:00:21]} Nh5 {[%clk 00:28:56]} {[%emt 00:01:31]}
9. Nd5 {[%clk 00:30:14]} {[%emt 00:00:15]} h6 {[%clk 00:28:36]} {[%emt
00:00:30]} 10. e4 {[%clk 00:29:39]} {[%emt 00:00:45]} Ne7 {[%clk 00:28:16]}
{[%emt 00:00:31]} 11. d4 {[%clk 00:27:46]} {[%emt 00:02:03]} c6 {[%clk
00:27:18]} {[%emt 00:01:08]} 12. Nxe7+ {[%clk 00:25:41]} {[%emt 00:02:15]} Qxe7
{[%clk 00:27:26]} {[%emt 00:00:02]} 13. dxe5 {[%clk 00:25:49]} {[%emt
00:00:03]} dxe5 {[%clk 00:27:28]} {[%emt 00:00:07]} 14. Qc2 {[%clk 00:24:27]}
{[%emt 00:01:31]} Nf6 {[%clk 00:21:50]} {[%emt 00:05:48]} 15. c5 {[%clk
00:23:29]} {[%emt 00:01:08]} Nd7 {[%clk 00:21:37]} {[%emt 00:00:24]} 16. Be3
{[%clk 00:23:37]} {[%emt 00:00:02]} a5 {[%clk 00:16:21]} {[%emt 00:05:25]} 17.
Rac1 {[%clk 00:22:00]} {[%emt 00:01:47]} Nb8 {[%clk 00:16:11]} {[%emt
00:00:20]} 18. Rfd1 {[%clk 00:19:28]} {[%emt 00:02:42]} Na6 {[%clk 00:15:44]}
{[%emt 00:00:38]} 19. Qd2 {[%clk 00:19:30]} {[%emt 00:00:08]} Kh7 {[%clk
00:15:10]} {[%emt 00:00:44]} 20. Qxa5 {[%clk 00:19:01]} {[%emt 00:00:39]} Nc7
{[%clk 00:15:05]} {[%emt 00:00:14]} 21. Qd2 {[%clk 00:17:52]} {[%emt 00:01:18]}
Rxa2 {[%clk 00:15:07]} {[%emt 00:00:10]} 22. Bf1 {[%clk 00:09:40]} {[%emt
00:08:22]} Be6 {[%clk 00:10:01]} {[%emt 00:05:16]} 23. Bc4 {[%clk 00:09:18]}
{[%emt 00:00:33]} Bxc4 {[%clk 00:09:54]} {[%emt 00:00:17]} 24. Rxc4 {[%clk
00:09:26]} {[%emt 00:00:01]} Nb5 {[%clk 00:07:54]} {[%emt 00:02:10]} 25. Rc2
{[%clk 00:08:38]} {[%emt 00:00:56]} Ra4 {[%clk 00:06:30]} {[%emt 00:01:35]} 26.
Qd7 {[%clk 00:08:01]} {[%emt 00:00:47]} Re8 {[%clk 00:06:23]} {[%emt 00:00:18]}
27. Qxe7 {[%clk 00:08:09]} {[%emt 00:00:02]} Rxe7 {[%clk 00:06:31]} 28. Nd2
{[%clk 00:07:10]} {[%emt 00:01:09]} Rd7 {[%clk 00:06:37]} {[%emt 00:00:05]} 29.
Re1 {[%clk 00:03:18]} {[%emt 00:04:02]} Nd4 {[%clk 00:04:59]} {[%emt 00:01:48]}
30. Bxd4 {[%clk 00:02:20]} {[%emt 00:01:08]} Raxd4 {[%clk 00:05:04]} {[%emt
00:00:05]} 31. Nc4 {[%clk 00:02:04]} {[%emt 00:00:25]} h5 {[%clk 00:04:47]}
{[%emt 00:00:27]} 32. h4 {[%clk 00:02:11]} {[%emt 00:00:03]} f6 {[%clk
00:04:44]} {[%emt 00:00:14]} 33. Kg2 {[%clk 00:02:06]} {[%emt 00:00:15]} Bf8
{[%clk 00:04:09]} {[%emt 00:00:45]} 34. b4 {[%clk 00:02:14]} {[%emt 00:00:02]}
Rd3 {[%clk 00:04:10]} {[%emt 00:00:09]} 35. Rb1 {[%clk 00:01:54]} {[%emt
00:00:30]} Rd1 {[%clk 00:03:39]} {[%emt 00:00:40]} 36. Rxd1 {[%clk 00:01:20]}
{[%emt 00:00:45]} Rxd1 {[%clk 00:03:48]} 37. Na5 {[%clk 00:01:27]} {[%emt
00:00:03]} Rd7 {[%clk 00:03:56]} {[%emt 00:00:02]} 38. Kf3 {[%clk 00:01:29]}
{[%emt 00:00:08]} Kg7 {[%clk 00:04:03]} {[%emt 00:00:03]} 39. Ke3 {[%clk
00:01:31]} {[%emt 00:00:08]} Kf7 {[%clk 00:03:57]} {[%emt 00:00:15]} 40. Rc3
{[%clk 00:01:24]} {[%emt 00:00:16]} Be7 {[%clk 00:01:48]} {[%emt 00:02:19]} 41.
Rd3 {[%clk 00:01:14]} {[%emt 00:00:20]} Rc7 {[%clk 00:01:54]} {[%emt 00:00:05]}
42. Nc4 {[%clk 00:01:16]} {[%emt 00:00:08]} Ke6 {[%clk 00:01:52]} {[%emt
00:00:11]} 43. Rd1 {[%clk 00:01:24]} {[%emt 00:00:02]} Rd7 {[%clk 00:01:32]}
{[%emt 00:00:31]} 44. Rxd7 {[%clk 00:01:31]} {[%emt 00:00:03]} Kxd7 {[%clk
00:01:40]} {[%emt 00:00:01]} 45. Kd3 {[%clk 00:01:16]} {[%emt 00:00:26]} b5
{[%clk 00:01:20]} {[%emt 00:00:30]} 46. Ne3 {[%clk 00:00:54]} {[%emt 00:00:31]}
Ke6 {[%clk 00:01:24]} {[%emt 00:00:07]} 47. Ng2 {[%clk 00:00:40]} {[%emt
00:00:24]} Bd8 {[%clk 00:00:43]} {[%emt 00:00:50]} 48. Ke3 {[%clk 00:00:48]}
{[%emt 00:00:02]} Be7 {[%clk 00:00:51]} {[%emt 00:00:03]} 49. f3 {[%clk
00:00:51]} {[%emt 00:00:07]} Bd8 {[%clk 00:00:59]} {[%emt 00:00:02]} 50. Ne1
{[%clk 00:00:58]} {[%emt 00:00:03]} Be7 {[%clk 00:01:04]} {[%emt 00:00:05]} 51.
Nd3 {[%clk 00:01:07]} g5 {[%clk 00:01:04]} {[%emt 00:00:11]} 52. Kf2 {[%clk
00:00:50]} {[%emt 00:00:27]} gxh4 {[%clk 00:01:04]} {[%emt 00:00:10]} 53. gxh4
{[%clk 00:00:59]} f5 {[%clk 00:01:13]} {[%emt 00:00:02]} 54. Kg3 {[%clk
00:01:03]} {[%emt 00:00:04]} f4+ {[%clk 00:01:15]} {[%emt 00:00:10]} 55. Kh3
{[%clk 00:01:11]} {[%emt 00:00:02]} Bf6 {[%clk 00:01:18]} {[%emt 00:00:07]}
1/2-1/2

[Event "Vastgota Open 2022"]
[Site "Skara stadshotell, Jarnvagsgatan 5, Skara, Sweden"]
[Date "2022.10.30"]
[Round "6.8"]
[White "Bellon Lopez, Juan Manuel"]
[Black "Magnussen, Pal"]
[Result "1/2-1/2"]
[TimeControl "30 minutes + 10 seconds per move from move one."]
[WhiteTitle "GM"]
[WhiteFideId "2200031"]
[BlackFideId "1711814"]
[WhiteElo "2347"]
[BlackElo "1861"]

1. d4 {[%clk 00:30:17]} c5 {[%clk 00:30:04]} {[%emt 00:00:15]} 2. e3 {[%clk
00:30:07]} {[%emt 00:00:19]} Nf6 {[%clk 00:29:46]} {[%emt 00:00:28]} 3. Nf3
{[%clk 00:30:13]} {[%emt 00:00:04]} e6 {[%clk 00:29:14]} {[%emt 00:00:42]} 4.
Bd3 {[%clk 00:30:11]} {[%emt 00:00:12]} d5 {[%clk 00:29:06]} {[%emt 00:00:18]}
5. c3 {[%clk 00:30:16]} {[%emt 00:00:04]} Be7 {[%clk 00:28:15]} {[%emt
00:01:01]} 6. O-O {[%clk 00:30:21]} {[%emt 00:00:08]} O-O {[%clk 00:28:22]} 7.
Ne5 {[%clk 00:30:20]} {[%emt 00:00:11]} Nc6 {[%clk 00:28:01]} {[%emt 00:00:31]}
8. f4 {[%clk 00:30:27]} {[%emt 00:00:04]} Ne4 {[%clk 00:21:23]} {[%emt
00:06:48]} 9. Nxc6 {[%clk 00:27:54]} {[%emt 00:02:43]} bxc6 {[%clk 00:21:14]}
{[%emt 00:00:18]} 10. Qa4 {[%clk 00:27:45]} {[%emt 00:00:19]} Qb6 {[%clk
00:19:54]} {[%emt 00:01:30]} 11. Bxe4 {[%clk 00:24:46]} {[%emt 00:03:09]} dxe4
{[%clk 00:19:57]} {[%emt 00:00:08]} 12. dxc5 {[%clk 00:23:16]} {[%emt
00:01:40]} Bxc5 {[%clk 00:19:40]} {[%emt 00:00:27]} 13. Qxe4 {[%clk 00:23:24]}
{[%emt 00:00:02]} Ba6 {[%clk 00:17:12]} {[%emt 00:02:38]} 14. Re1 {[%clk
00:19:07]} {[%emt 00:04:26]} Rad8 {[%clk 00:16:08]} {[%emt 00:01:15]} 15. b4
{[%clk 00:15:38]} {[%emt 00:03:38]} Be7 {[%clk 00:15:45]} {[%emt 00:00:34]} 16.
Qc2 {[%clk 00:13:25]} {[%emt 00:02:22]} c5 {[%clk 00:14:05]} {[%emt 00:01:51]}
17. bxc5 {[%clk 00:10:33]} {[%emt 00:03:02]} Bxc5 {[%clk 00:13:49]} {[%emt
00:00:26]} 18. Qb3 {[%clk 00:10:31]} {[%emt 00:00:12]} Qc6 {[%clk 00:13:28]}
{[%emt 00:00:31]} 19. Ba3 {[%clk 00:08:01]} {[%emt 00:02:41]} Rb8 {[%clk
00:11:56]} {[%emt 00:01:41]} 20. Bb4 {[%clk 00:06:38]} {[%emt 00:01:34]} Bc4
{[%clk 00:11:24]} {[%emt 00:00:41]} 21. Qa3 {[%clk 00:05:57]} {[%emt 00:00:52]}
Bxb4 {[%clk 00:10:53]} {[%emt 00:00:41]} 22. cxb4 {[%clk 00:06:05]} {[%emt
00:00:02]} Bd5 {[%clk 00:10:21]} {[%emt 00:00:42]} 23. Qc3 {[%clk 00:04:26]}
{[%emt 00:01:48]} Qb7 {[%clk 00:08:57]} {[%emt 00:01:35]} 24. Re2 {[%clk
00:04:34]} {[%emt 00:00:02]} Qxb4 {[%clk 00:08:51]} {[%emt 00:00:15]} 25. Qxb4
{[%clk 00:04:42]} {[%emt 00:00:03]} Rxb4 {[%clk 00:09:01]} 26. Nc3 {[%clk
00:04:41]} {[%emt 00:00:13]} Bc4 {[%clk 00:08:42]} {[%emt 00:00:26]} 27. Rd2
{[%clk 00:04:46]} {[%emt 00:00:04]} Rb7 {[%clk 00:08:04]} {[%emt 00:00:50]} 28.
Rc1 {[%clk 00:04:38]} {[%emt 00:00:18]} h6 {[%clk 00:07:04]} {[%emt 00:01:10]}
29. Ne4 {[%clk 00:04:37]} {[%emt 00:00:09]} Bd5 {[%clk 00:06:46]} {[%emt
00:00:28]} 30. Nc5 {[%clk 00:04:03]} {[%emt 00:00:45]} Rc7 {[%clk 00:06:25]}
{[%emt 00:00:32]} 31. Rdc2 {[%clk 00:03:15]} {[%emt 00:00:57]} Rfc8 {[%clk
00:06:11]} {[%emt 00:00:23]} 32. a4 {[%clk 00:03:19]} {[%emt 00:00:07]} Bb3
{[%clk 00:05:56]} {[%emt 00:00:26]} 33. Rc3 {[%clk 00:03:23]} {[%emt 00:00:05]}
a5 {[%clk 00:04:28]} {[%emt 00:01:38]} 34. e4 {[%clk 00:03:10]} {[%emt
00:00:23]} f5 {[%clk 00:03:49]} {[%emt 00:00:50]} 35. e5 {[%clk 00:02:14]}
{[%emt 00:01:06]} Bd5 {[%clk 00:03:34]} {[%emt 00:00:24]} 36. Kf2 {[%clk
00:02:23]} {[%emt 00:00:01]} Rb8 {[%clk 00:03:14]} {[%emt 00:00:30]} 37. R1c2
{[%clk 00:02:28]} {[%emt 00:00:05]} Rb1 {[%clk 00:03:04]} {[%emt 00:00:20]} 38.
g3 {[%clk 00:02:21]} {[%emt 00:00:17]} Rh1 {[%clk 00:02:32]} {[%emt 00:00:43]}
39. Ke3 {[%clk 00:02:16]} {[%emt 00:00:14]} Rc8 {[%clk 00:02:18]} {[%emt
00:00:25]} 40. h4 {[%clk 00:01:52]} {[%emt 00:00:34]} Rg1 {[%clk 00:02:16]}
{[%emt 00:00:12]} 41. Kd2 {[%clk 00:01:42]} {[%emt 00:00:20]} Rb8 {[%clk
00:02:08]} {[%emt 00:00:19]} 42. Nd7 {[%clk 00:01:37]} {[%emt 00:00:14]} Rg2+
{[%clk 00:02:00]} {[%emt 00:00:18]} 43. Kc1 {[%clk 00:01:18]} {[%emt 00:00:30]}
Rg1+ {[%clk 00:01:47]} {[%emt 00:00:23]} 44. Kd2 {[%clk 00:01:25]} {[%emt
00:00:02]} Rg2+ {[%clk 00:01:56]} {[%emt 00:00:01]} 45. Kc1 {[%clk 00:00:43]}
{[%emt 00:00:52]} Rg1+ {[%clk 00:02:05]} {[%emt 00:00:02]} 46. Kd2 1/2-1/2

[Event "Vastgota Open 2022"]
[Site "Skara stadshotell, Jarnvagsgatan 5, Skara, Sweden"]
[Date "2022.10.30"]
[Round "6.9"]
[White "Ronneland, Daniel"]
[Black "Stolt, Hans-Olof"]
[Result "1-0"]
[TimeControl "30 minutes + 10 seconds per move from move one."]
[WhiteFideId "1702130"]
[BlackFideId "1720368"]
[WhiteElo "2206"]
[BlackElo "1838"]

1. d4 {[%clk 00:30:16]} d6 {[%clk 00:30:07]} {[%emt 00:00:05]} 2. c4 {[%clk
00:30:12]} {[%emt 00:00:14]} Nf6 {[%clk 00:30:12]} {[%emt 00:00:05]} 3. Nc3
{[%clk 00:30:11]} {[%emt 00:00:11]} g6 {[%clk 00:29:50]} {[%emt 00:00:32]} 4.
e4 {[%clk 00:30:06]} {[%emt 00:00:16]} Bg7 {[%clk 00:29:57]} {[%emt 00:00:03]}
5. Be2 {[%clk 00:29:17]} {[%emt 00:00:59]} O-O {[%clk 00:29:46]} {[%emt
00:00:21]} 6. h4 {[%clk 00:29:10]} {[%emt 00:00:16]} e5 {[%clk 00:29:07]}
{[%emt 00:00:50]} 7. d5 {[%clk 00:28:20]} {[%emt 00:00:59]} Ne8 {[%clk
00:19:38]} {[%emt 00:09:39]} 8. h5 {[%clk 00:25:28]} {[%emt 00:03:02]} g5
{[%clk 00:18:36]} {[%emt 00:01:12]} 9. h6 {[%clk 00:24:34]} {[%emt 00:01:04]}
Bf6 {[%clk 00:15:28]} {[%emt 00:03:18]} 10. Be3 {[%clk 00:23:58]} {[%emt
00:00:44]} Kh8 {[%clk 00:15:28]} {[%emt 00:00:12]} 11. Qd2 {[%clk 00:22:37]}
{[%emt 00:01:31]} Be7 {[%clk 00:13:09]} {[%emt 00:02:29]} 12. Nf3 {[%clk
00:18:50]} {[%emt 00:03:56]} Rg8 {[%clk 00:12:30]} {[%emt 00:00:50]} 13. Rh5
{[%clk 00:18:37]} {[%emt 00:00:21]} f6 {[%clk 00:11:37]} {[%emt 00:01:04]} 14.
O-O-O {[%clk 00:18:22]} {[%emt 00:00:24]} Rg6 {[%clk 00:09:24]} {[%emt
00:02:24]} 15. Rdh1 {[%clk 00:17:24]} {[%emt 00:01:07]} Nd7 {[%clk 00:07:04]}
{[%emt 00:02:32]} 16. Nh2 {[%clk 00:17:20]} {[%emt 00:00:13]} Nb6 {[%clk
00:06:38]} {[%emt 00:00:37]} 17. Nf1 {[%clk 00:14:43]} {[%emt 00:02:47]} c6
{[%clk 00:04:51]} {[%emt 00:01:57]} 18. Ng3 {[%clk 00:14:15]} {[%emt 00:00:37]}
Bf8 {[%clk 00:04:14]} {[%emt 00:00:48]} 19. Nf5 {[%clk 00:13:54]} {[%emt
00:00:31]} Qc7 {[%clk 00:03:46]} {[%emt 00:00:39]} 20. Kb1 {[%clk 00:13:41]}
{[%emt 00:00:22]} Nd7 {[%clk 00:03:41]} {[%emt 00:00:15]} 21. g3 {[%clk
00:13:34]} {[%emt 00:00:16]} Nc5 {[%clk 00:03:43]} {[%emt 00:00:09]} 22. f4
{[%clk 00:13:20]} {[%emt 00:00:23]} Nxe4 {[%clk 00:03:15]} {[%emt 00:00:39]} 23.
Nxe4 {[%clk 00:12:53]} {[%emt 00:00:37]} Bxf5 {[%clk 00:03:23]} 24. Bd3 {[%clk
00:12:25]} {[%emt 00:00:38]} Bg4 {[%clk 00:02:43]} {[%emt 00:00:51]} 25. R5h2
{[%clk 00:12:08]} {[%emt 00:00:26]} Be7 {[%clk 00:02:14]} {[%emt 00:00:40]} 26.
fxg5 {[%clk 00:11:47]} {[%emt 00:00:31]} f5 {[%clk 00:02:21]} {[%emt 00:00:04]}
27. Nf2 {[%clk 00:11:38]} {[%emt 00:00:16]} Bf3 {[%clk 00:02:29]} {[%emt
00:00:05]} 28. Bxf5 {[%clk 00:11:34]} {[%emt 00:00:13]} Bg4 {[%emt 00:00:14]}
29. Bd3 1-0

[Event "Vastgota Open 2022"]
[Site "Skara stadshotell, Jarnvagsgatan 5, Skara, Sweden"]
[Date "2022.10.30"]
[Round "6.10"]
[White "Bjorklund, Thomas"]
[Black "Wiman, Kenneth"]
[Result "1-0"]
[TimeControl "30 minutes + 10 seconds per move from move one."]
[WhiteFideId "1724576"]
[BlackFideId "1707442"]
[WhiteElo "2122"]
[BlackElo "1820"]

1. e4 {[%clk 00:30:17]} {[%emt 00:08:31]} c6 {[%clk 00:30:15]} 2. d4 {[%clk
00:30:24]} {[%emt 00:00:02]} d5 {[%clk 00:30:21]} {[%emt 00:00:04]} 3. exd5
{[%clk 00:30:33]} {[%emt 00:00:02]} cxd5 {[%clk 00:30:29]} {[%emt 00:00:02]} 4.
Bd3 {[%clk 00:30:22]} {[%emt 00:00:21]} g6 {[%clk 00:30:33]} {[%emt 00:00:06]}
5. Nf3 {[%clk 00:30:18]} {[%emt 00:00:14]} Nh6 {[%clk 00:30:24]} {[%emt
00:00:19]} 6. c3 {[%clk 00:30:10]} {[%emt 00:00:18]} Bg7 {[%clk 00:29:44]}
{[%emt 00:00:49]} 7. Na3 {[%clk 00:29:47]} {[%emt 00:00:34]} O-O {[%clk
00:29:31]} {[%emt 00:00:22]} 8. O-O {[%clk 00:29:45]} {[%emt 00:00:12]} Nc6
{[%clk 00:27:38]} {[%emt 00:02:03]} 9. Re1 {[%clk 00:28:59]} {[%emt 00:00:56]}
Nf5 {[%clk 00:26:11]} {[%emt 00:01:37]} 10. Nc2 {[%clk 00:28:12]} {[%emt
00:00:57]} a6 {[%clk 00:25:04]} {[%emt 00:01:17]} 11. a4 {[%clk 00:27:49]}
{[%emt 00:00:34]} Qc7 {[%clk 00:23:49]} {[%emt 00:01:24]} 12. Ne3 {[%clk
00:26:31]} {[%emt 00:01:28]} Nxe3 {[%clk 00:23:29]} {[%emt 00:00:30]} 13. Bxe3
{[%clk 00:26:20]} {[%emt 00:00:21]} Bg4 {[%clk 00:16:45]} {[%emt 00:06:54]} 14.
h3 {[%clk 00:24:20]} {[%emt 00:02:11]} Bxf3 {[%clk 00:16:49]} {[%emt 00:00:06]}
15. Qxf3 {[%clk 00:24:24]} {[%emt 00:00:06]} e6 {[%clk 00:16:40]} {[%emt
00:00:18]} 16. Bf4 {[%clk 00:23:03]} {[%emt 00:01:31]} Qd7 {[%clk 00:16:00]}
{[%emt 00:00:51]} 17. h4 {[%clk 00:22:03]} {[%emt 00:01:09]} Rac8 {[%clk
00:15:20]} {[%emt 00:00:50]} 18. h5 {[%clk 00:22:02]} {[%emt 00:00:11]} Rfe8
{[%clk 00:11:00]} {[%emt 00:04:30]} 19. Qh3 {[%clk 00:20:51]} {[%emt 00:01:22]}
Qd8 {[%clk 00:09:46]} {[%emt 00:01:24]} 20. Re2 {[%clk 00:17:36]} {[%emt
00:03:25]} Na5 {[%clk 00:08:01]} {[%emt 00:01:55]} 21. Rae1 {[%clk 00:16:27]}
{[%emt 00:01:19]} Nc4 {[%clk 00:06:35]} {[%emt 00:01:36]} 22. g4 {[%clk
00:15:35]} {[%emt 00:01:01]} b5 {[%clk 00:06:13]} {[%emt 00:00:32]} 23. axb5
{[%clk 00:15:38]} {[%emt 00:00:08]} axb5 {[%clk 00:06:20]} {[%emt 00:00:02]} 24.
hxg6 {[%clk 00:15:42]} {[%emt 00:00:06]} hxg6 {[%clk 00:06:09]} {[%emt
00:00:21]} 25. Kg2 {[%clk 00:15:43]} {[%emt 00:00:08]} Qf6 {[%clk 00:04:59]}
{[%emt 00:01:21]} 26. Bg3 {[%clk 00:14:58]} {[%emt 00:00:55]} Ra8 {[%clk
00:03:50]} {[%emt 00:01:20]} 27. Bxc4 {[%clk 00:14:07]} {[%emt 00:01:01]} bxc4
{[%clk 00:03:29]} {[%emt 00:00:31]} 28. Rh1 {[%clk 00:14:11]} {[%emt 00:00:06]}
g5 {[%clk 00:02:51]} {[%emt 00:00:48]} 29. Be5 {[%clk 00:13:38]} {[%emt
00:00:43]} Qg6 {[%clk 00:02:54]} {[%emt 00:00:07]} 30. Qh8+ {[%clk 00:13:40]}
{[%emt 00:00:08]} 1-0